bitfinex-derivatives/quotes_BNBF0:USTF0_20250709
["timestamp","ask_amount","ask_price","bid_price","bid_amount"]
[1752050857908,1.69561614,661.89,661.6,1.834]
[1752050858313,1.69561614,661.9,661.6,1.834]
[1752050858511,1.69561614,661.88,661.6,1.834]
[1752050859314,1.69561614,661.89,661.6,1.834]
[1752050859912,1.69561614,661.9,661.6,1.834]
[1752050861008,1.69561614,661.9,661.22,0.26297594]
[1752050861210,1.69561614,661.9,661.17,1.69961729]
[1752050861511,1.69561614,661.9,661.16,1.69961729]
[1752050862216,1.69561614,661.91,661.16,1.69961729]
[1752050863316,1.69561614,661.91,661.17,1.558]
[1752050864420,1.69561614,661.92,661.17,1.558]
[1752050865216,1.69561614,661.91,661.17,3.25761729]
[1752050866420,1.69561614,661.95,661.17,1.558]
[1752050868324,1.69561614,661.96,661.17,1.558]
[1752050876321,1.69561614,661.9,661.19,1.69961729]
[1752050877725,1.69561614,661.95,661.17,1.558]
[1752050878822,1.69561614,661.96,661.17,1.558]
[1752050879026,1.69561614,661.95,661.17,1.558]
[1752050882426,1.69561614,661.94,661.17,1.558]
[1752050885530,1.69561614,661.93,661.17,1.558]
[1752050887630,1.69561614,661.92,661.17,1.558]
[1752050888533,1.69561614,661.91,661.17,1.558]
[1752050888732,1.69561614,661.89,661.18,1.69961729]
[1752050889330,1.69561614,661.88,661.18,1.69961729]
[1752050889529,1.69561614,661.88,661.19,1.69961729]
[1752050890434,1.69561614,661.87,661.2,1.69961729]
[1752050892935,1.69561614,661.86,661.22,1.69961729]
[1752050893334,1.69561614,661.85,661.22,1.69961729]
[1752050895336,1.69561614,661.84,661.22,1.69961729]
[1752050895737,1.69561614,661.84,661.23,1.69961729]
[1752050896038,1.69561614,661.83,661.23,1.69961729]
[1752050896337,1.69561614,661.83,661.24,1.69961729]
[1752050897238,1.69561614,661.82,661.24,1.69961729]
[1752050897439,1.69561614,661.82,661.21,1.453]
[1752050897440,1.69561614,661.82,661.25,1.69961729]
[1752050899334,1.69561614,661.81,661.25,1.69961729]
[1752050900538,1.69561614,661.81,661.26,1.69961729]
[1752050901339,1.69561614,661.8,661.27,1.69961729]
[1752050902336,1.69561614,661.79,661.27,1.69961729]
[1752050903436,1.69561614,661.79,661.28,1.69961729]
[1752050904336,1.69561614,661.78,661.29,1.69961729]
[1752050905338,1.69561614,661.77,661.3,1.69961729]
[1752050906239,1.69561614,661.76,661.3,1.69961729]
[1752050907339,1.69561614,661.76,661.31,1.69961729]
[1752050908342,1.69561614,661.75,661.32,1.69961729]
[1752050909340,1.69561614,661.74,661.32,1.69961729]
[1752050910438,1.69561614,661.73,661.34,1.69961729]
[1752050911341,1.69561614,661.7,661.37,1.69961729]
[1752050912843,1.69561614,661.7,661.36,1.69961729]
[1752050913643,1.69561614,661.7,661.37,1.69961729]
[1752050913944,1.69561614,661.73,661.31,1.69961729]
[1752050919344,1.69561614,661.73,661.32,1.69961729]
[1752050919541,1.69561614,661.73,661.31,1.69961729]
[1752050920444,1.69561614,661.73,661.32,1.69961729]
[1752050922944,1.69561614,661.73,661.31,1.69961729]
[1752050924041,1.69561614,661.71,661.35,1.69961729]
[1752050925048,1.69561614,661.7,661.35,1.69961729]
[1752050925242,1.69561614,661.7,661.36,1.69961729]
[1752050929154,1.69561614,661.71,661.35,1.69961729]
[1752050932756,1.69561614,661.7,661.36,1.69961729]
[1752050933255,1.69561614,661.7,661.37,1.69961729]
[1752050934758,1.69561614,661.7,661.36,1.69961729]
[1752050936163,1.69561614,661.66,661.32,1.69961729]
[1752050936363,1.69561614,661.67,661.31,1.69961729]
[1752050936863,1.69561614,661.68,661.28,1.69961729]
[1752050937063,1.69561614,661.69,661.28,1.69961729]
[1752050945364,1.69561614,661.7,661.27,1.69961729]
[1752050946772,1.69561614,661.68,661.3,1.69961729]
[1752050948471,1.69561614,661.68,661.31,1.741]
[1752050952169,1.69561614,661.71,661.31,1.741]
[1752050961282,1.69278316,661.72,661.31,1.741]
[1752050962182,1.69278316,661.7,661.31,1.741]
[1752050966082,1.69278316,661.71,661.31,1.741]
[1752050966987,1.41293507,661.82,661.31,1.741]
[1752050967184,1.6927618,661.71,661.31,1.741]
[1752050967594,1.6927618,661.81,661.31,1.741]
[1752050967989,1.6927618,661.82,661.31,1.741]
[1752050968194,1.6927618,661.88,661.31,1.741]
[1752050972790,1.69244368,661.88,661.31,1.741]
[1752050977200,1.69244368,661.83,661.31,1.741]
[1752050977401,0.42979448,662.09,661.31,1.741]
[1752050977402,1.69244368,661.79,661.31,3.43955728]
[1752050978502,1.41244758,661.92,661.31,1.741]
[1752050978699,1.69218829,661.78,661.32,1.69830118]
[1752050979102,1.69218829,661.79,661.32,1.69830118]
[1752050979504,1.69218829,661.78,661.34,1.69830118]
[1752050979999,1.69218829,661.77,661.35,1.69830118]
[1752050980404,1.69218829,661.84,661.31,1.741]
[1752050990307,1.69218829,661.78,661.33,1.69830118]
[1752050990905,1.69218829,661.79,661.33,1.69830118]
[1752050993207,1.69218829,661.78,661.33,1.69830118]
[1752050993407,1.69218829,661.79,661.33,1.69830118]
[1752050994011,1.69218829,661.79,661.32,1.69830118]
[1752050994706,1.69218829,661.79,661.33,1.961]
[1752050997312,1.69218829,661.82,661.33,1.961]
[1752050998112,1.69218829,661.8,661.33,1.961]
[1752051000113,1.69218829,661.81,661.33,1.961]
[1752051002310,1.41132133,661.93,661.33,1.961]
[1752051002311,1.69218829,661.8,661.33,1.961]
[1752051004616,1.41132133,661.93,661.33,1.961]
[1752051004617,1.69218829,661.81,661.33,1.961]
[1752051006017,1.69218829,661.82,661.33,1.961]
[1752051006718,1.69218829,661.85,661.33,1.961]
[1752051006918,1.69218829,661.87,661.33,1.961]
[1752051010720,1.69218829,661.86,661.33,1.961]
[1752051013222,1.69218829,661.87,661.33,1.961]
[1752051013422,1.69218829,661.86,661.33,1.961]
[1752051013723,1.69218829,661.86,661.33,1.69830118]
[1752051014223,1.69218829,661.84,661.36,1.69830118]
[1752051014920,1.69218829,661.84,661.35,1.69830118]
[1752051016119,1.69122846,661.84,661.36,1.634]
[1752051017124,1.69122846,661.85,661.36,1.634]
[1752051023924,1.69122846,661.84,661.36,1.634]
[1752051024827,1.69122846,661.83,661.36,3.33167622]
[1752051026732,1.69122846,661.82,661.38,1.69767622]
[1752051027328,1.69122846,661.81,661.39,1.69767622]
[1752051029534,1.69122846,661.81,661.4,1.69767622]
[1752051029834,1.69122846,661.8,661.4,1.69767622]
[1752051030331,1.69122846,661.81,661.4,1.69767622]
[1752051031138,1.69122846,661.8,661.4,1.69767622]
[1752051031335,1.69122846,661.81,661.4,1.69767622]
[1752051031936,1.69122846,661.8,661.4,1.69767622]
[1752051034138,1.69122846,661.81,661.4,1.69767622]
[1752051034538,1.69122846,661.8,661.39,1.69767622]
[1752051035045,1.69122846,661.8,661.4,1.69767622]
[1752051035539,1.69122846,661.8,661.36,1.634]
[1752051035540,1.69122846,661.79,661.41,1.69767622]
[1752051035944,1.69122846,661.8,661.39,1.69767622]
[1752051036143,1.69122846,661.8,661.4,1.69767622]
[1752051036644,1.69122846,661.81,661.38,1.69767622]
[1752051039949,1.69224671,661.81,661.38,1.69869795]
[1752051045753,1.69224671,661.82,661.37,1.69869795]
[1752051046052,1.69224671,661.81,661.37,1.69869795]
[1752051046249,1.69224671,661.81,661.38,1.69869795]
[1752051046454,1.69224671,661.8,661.39,1.69869795]
[1752051053260,1.69224671,661.81,661.38,1.69869795]
[1752051053758,1.69224671,661.8,661.37,1.69869795]
[1752051055654,1.69224671,661.79,661.39,1.69869795]
[1752051058256,1.69224671,661.78,661.39,1.69869795]
[1752051058554,1.69224671,661.78,661.4,1.69869795]
[1752051060756,1.69224671,661.78,661.39,1.69869795]
[1752051061258,1.69224671,661.78,661.4,1.69869795]
[1752051063063,0.98240289,661.89,661.14,0.2630465]
[1752051063064,1.69224671,661.8,661.37,1.69869795]
[1752051064263,1.69224671,661.79,661.37,1.69869795]
[1752051064463,1.69224671,661.8,661.37,1.69869795]
[1752051065264,1.69224671,661.79,661.38,1.69869795]
[1752051065764,1.69224671,661.79,661.39,2.055]
[1752051072966,1.69224671,661.77,661.41,1.69869795]
[1752051077574,1.69224671,661.78,661.39,3.75369795]
[1752051077971,1.69224671,661.8,661.39,2.055]
[1752051078171,1.69224671,661.79,661.39,2.055]
[1752051080875,1.69349005,661.79,661.39,3.75501049]
[1752051083673,1.69349005,661.79,661.39,2.055]
[1752051084176,1.69349005,661.8,661.39,2.055]
[1752051085174,1.69349005,661.79,661.39,2.055]
[1752051087775,1.69349005,661.78,661.4,1.70001049]
[1752051090176,1.69349005,661.78,661.39,3.75501049]
[1752051092083,1.69349005,661.79,661.39,2.055]
[1752051092782,1.69349005,661.84,661.39,2.055]
[1752051093284,1.69349005,661.83,661.39,2.055]
[1752051097581,0.43031404,662.0,661.39,2.055]
[1752051097582,1.69349005,661.85,661.39,2.055]
[1752051101885,1.69349005,661.85,661.29,1.70001049]
[1752051102486,1.69349005,661.85,661.32,1.70001049]
[1752051102789,1.69349005,661.83,661.32,1.70001049]
[1752051104490,1.69349005,661.83,661.33,1.83]
[1752051106487,1.69349005,661.82,661.34,1.70001049]
[1752051107391,1.69349005,661.79,661.38,1.70001049]
[1752051108894,1.69349005,661.79,661.39,1.70001049]
[1752051110696,1.69349005,661.87,661.33,1.83]
[1752051110892,1.69349005,661.86,661.33,1.83]
[1752051111296,1.69349005,661.85,661.33,1.83]
[1752051111695,1.69349005,661.84,661.33,1.83]
[1752051113995,1.69349005,661.83,661.33,1.83]
[1752051115192,1.69349005,661.71,661.33,1.83]
[1752051115492,1.69349005,661.73,661.33,1.83]
[1752051115696,1.69349005,661.71,661.33,1.83]
[1752051116395,1.69349005,661.72,661.33,1.83]
[1752051116596,1.41174207,661.89,661.33,1.83]
[1752051116793,1.69155328,661.72,661.33,1.83]
[1752051117392,1.69155328,661.73,661.33,1.83]
[1752051118399,1.69155328,661.74,661.33,1.83]
[1752051120598,1.69155328,661.7,661.33,1.83]
[1752051121796,1.69155328,661.74,661.33,1.83]
[1752051122403,1.69155328,661.76,661.33,1.83]
[1752051123200,1.69155328,661.77,661.33,1.83]
[1752051123398,1.69155328,661.77,661.07,1.69874792]
[1752051123902,1.69155328,661.76,661.07,1.69874792]
[1752051124303,1.69155328,661.77,661.07,1.69874792]
[1752051124500,1.69155328,661.76,661.06,1.69874792]
[1752051125205,1.69155328,661.77,661.06,1.69874792]
[1752051126808,1.69155328,661.77,661.07,1.579]
[1752051128214,1.69155328,661.78,661.07,1.579]
[1752051131111,1.69155328,661.77,661.07,1.579]
[1752051131312,1.69155328,661.7,661.07,1.579]
[1752051131612,1.69155328,661.68,661.07,1.579]
[1752051132311,1.69155328,661.65,661.07,1.579]
[1752051134809,0.98200741,661.77,661.07,1.579]
[1752051135010,1.41061036,661.9,661.07,1.579]
[1752051135215,1.41061036,663.08,661.07,1.579]
[1752051135513,1.68704325,661.65,661.07,1.579]
[1752051137309,1.68704325,661.66,661.07,1.579]
[1752051137609,1.68704325,661.65,661.07,1.579]
[1752051140214,1.68704325,661.66,661.07,1.579]
[1752051143212,1.68704325,661.68,661.07,1.579]
[1752051147224,1.68704325,661.75,661.07,1.579]
[1752051148224,1.68704325,661.76,661.07,1.579]
[1752051148422,1.68704325,661.75,661.07,1.579]
[1752051149326,1.68704325,661.76,661.07,1.579]
[1752051149526,1.68704325,661.75,661.07,1.579]
[1752051150222,1.68704325,661.76,661.07,1.579]
[1752051151224,1.68704325,661.77,661.07,1.579]
[1752051157130,1.68704325,661.74,661.07,1.579]
[1752051160227,1.68704325,661.73,661.07,1.579]
[1752051160927,1.68704325,661.72,661.07,1.579]
[1752051162234,1.68704325,661.71,661.07,1.579]
[1752051163930,1.68704325,661.69,661.07,1.579]
[1752051164129,1.68704325,661.7,661.07,1.579]
[1752051164335,1.68704325,661.68,661.07,1.579]
[1752051165135,1.68704325,661.69,661.07,1.579]
[1752051165333,1.68704325,661.68,661.07,1.579]
[1752051167436,1.68704325,661.67,661.07,1.579]
[1752051167637,1.68704325,661.7,661.07,1.579]
[1752051168333,1.68704325,661.67,661.07,1.579]
[1752051168632,1.68704325,661.66,661.07,1.579]
[1752051169339,1.68704325,661.65,661.07,1.579]
[1752051170936,1.68704325,661.65,660.91,1.69468833]
[1752051171338,1.68704325,661.64,660.92,1.69468833]
[1752051172135,1.68704325,661.64,660.91,1.69468833]
[1752051172434,1.68704325,661.63,660.92,1.69468833]
[1752051173235,1.68704325,661.59,660.97,1.69468833]
[1752051173439,1.68704325,661.59,660.98,1.69468833]
[1752051173735,1.68704325,661.58,660.97,1.69468833]
[1752051173940,1.68704325,661.57,660.99,1.388]
[1752051174140,1.68704325,661.58,660.99,1.388]
[1752051174440,1.68704325,661.57,660.99,1.388]
[1752051174640,1.68704325,661.51,660.99,1.388]
[1752051175042,1.68704325,661.48,660.99,1.388]
[1752051176342,1.68704325,661.49,660.99,1.388]
[1752051176839,1.68704325,661.48,660.99,1.388]
[1752051177246,1.68704325,661.49,660.99,1.388]
[1752051181347,1.68704325,661.5,660.99,1.388]
[1752051182944,1.68704325,661.49,660.99,1.388]
[1752051183148,1.68704325,661.46,660.99,1.388]
[1752051184648,1.68704325,661.47,660.99,1.388]
[1752051184847,1.68704325,661.48,660.99,1.388]
[1752051186146,1.68704325,661.49,660.99,1.388]
[1752051186651,1.68704325,661.48,660.99,1.388]
[1752051187145,1.41015846,661.6,660.99,1.388]
[1752051187146,1.68704325,661.49,660.99,1.388]
[1752051187450,1.68704325,661.48,660.99,1.388]
[1752051187649,1.68704325,661.49,660.99,1.388]
[1752051194949,1.68704325,661.48,660.99,1.388]
[1752051195149,1.68704325,661.47,660.99,1.388]
[1752051195346,1.68704325,661.48,660.99,1.388]
[1752051208164,1.68704325,661.47,660.99,1.388]
[1752051216170,1.68704325,661.46,660.99,1.388]
[1752051216868,1.68704325,661.49,660.99,1.388]
[1752051217873,1.68704325,661.5,660.99,1.388]
[1752051218270,1.68704325,661.56,660.99,1.388]
[1752051218574,1.68704325,661.57,660.99,1.388]
[1752051219171,1.68704325,661.56,660.99,1.388]
[1752051221472,1.68704325,661.62,660.99,1.388]
[1752051221676,1.68704325,661.63,660.99,1.388]
[1752051222276,1.68704325,661.62,660.99,1.388]
[1752051222877,1.68704325,661.59,660.99,1.388]
[1752051223577,1.68704325,661.48,660.99,1.388]
[1752051224580,1.68704325,661.47,660.99,1.388]
[1752051224780,1.68704325,661.48,660.99,1.388]
[1752051224980,1.68704325,661.48,660.95,1.69468833]
[1752051225280,1.68704325,661.47,660.96,1.69468833]
[1752051225481,1.68704325,661.47,660.95,1.69468833]
[1752051225679,1.68704325,661.47,660.96,1.69468833]
[1752051226384,1.68704325,661.46,660.97,1.69468833]
[1752051227382,1.68704325,661.46,660.96,1.69468833]
[1752051227585,1.68704325,661.46,660.97,1.69468833]
[1752051228186,1.69041674,661.45,660.97,1.69896721]
[1752051228983,1.69041674,661.45,660.98,1.639]
[1752051229287,1.69041674,661.45,660.98,3.33796721]
[1752051231283,1.69041674,661.44,660.99,1.69896721]
[1752051233389,1.69041674,661.43,661.0,1.69896721]
[1752051234188,1.69041674,661.42,661.01,1.69896721]
[1752051236488,1.69041674,661.41,661.02,1.69896721]
[1752051237088,1.69041674,661.39,661.05,1.69896721]
[1752051238192,1.69041674,661.39,661.04,1.69896721]
[1752051238995,0.98066687,661.49,660.98,1.639]
[1752051239291,1.6921169,661.39,661.04,1.7006785]
[1752051241196,1.6921169,661.4,661.04,1.7006785]
[1752051243197,1.6921169,661.42,661.0,1.7006785]
[1752051244398,1.6921169,661.42,661.01,1.7006785]
[1752051244593,1.6921169,661.43,661.01,1.7006785]
[1752051245495,1.6921169,661.43,661.02,1.7006785]
[1752051248801,1.6921169,661.43,661.01,1.7006785]
[1752051249299,1.6921169,661.43,661.02,1.7006785]
[1752051250301,1.6921169,661.44,661.01,1.7006785]
[1752051250699,1.6921169,661.42,661.04,1.7006785]
[1752051250899,1.6921169,661.46,660.98,1.7006785]
[1752051251103,1.6921169,661.46,660.97,1.7006785]
[1752051251401,1.6921169,661.47,660.97,1.7006785]
[1752051251703,1.6921169,661.47,660.98,1.745]
[1752051252904,1.6921169,661.48,660.98,1.745]
[1752051253604,1.6921169,661.49,660.98,1.745]
[1752051253800,1.6921169,661.5,660.98,1.745]
[1752051254400,1.6921169,661.56,661.03,1.7006785]
[1752051255302,1.6921169,661.56,661.02,1.7006785]
[1752051255606,1.6921169,661.64,660.98,1.745]
[1752051258208,1.6921169,661.6,660.98,1.745]
[1752051260410,1.6921169,661.61,660.98,1.745]
[1752051261513,0.42939042,661.83,660.98,1.745]
[1752051261514,1.6921169,661.6,660.98,1.745]
[1752051262009,0.42939042,661.83,660.98,1.745]
[1752051262010,0.98177707,661.81,660.98,1.745]
[1752051262212,1.69095924,661.6,660.98,1.745]
[1752051265321,1.69095924,661.53,660.98,1.745]
[1752051266823,1.69095924,661.48,661.03,1.69929357]
[1752051267323,1.69095924,661.5,660.99,1.69929357]
[1752051268820,1.69095924,661.51,660.98,1.745]
[1752051269324,1.69095924,661.5,660.98,1.745]
[1752051270024,1.69095924,661.49,660.98,1.745]
[1752051275025,1.69095924,661.5,660.98,1.745]
[1752051275923,1.69095924,661.48,660.98,1.745]
[1752051277223,1.69095924,661.47,660.98,1.745]
[1752051278627,1.69095924,661.46,660.98,1.745]
[1752051279123,1.69095924,661.45,660.98,1.745]
[1752051279327,1.69095924,661.45,660.98,3.44429357]
[1752051281729,1.69095924,661.45,660.99,1.69929357]
[1752051283229,1.69095924,661.45,660.98,3.44429357]
[1752051283427,1.41040333,661.57,660.98,1.745]
[1752051283631,1.69107276,661.45,660.99,1.69962725]
[1752051283832,1.69107276,661.44,661.0,1.69962725]
[1752051284631,1.69107276,661.44,660.99,1.69962725]
[1752051285035,1.69107276,661.43,661.01,1.69962725]
[1752051285532,1.69107276,661.42,661.01,1.69962725]
[1752051287033,1.69107276,661.45,660.98,3.44462725]
[1752051291140,1.69107276,661.45,660.98,1.745]
[1752051291337,1.69107276,661.44,660.98,1.745]
[1752051293238,1.69107276,661.44,660.98,3.44462725]
[1752051293641,1.69107276,661.44,660.98,1.69962725]
[1752051294541,1.69107276,661.48,660.92,1.69962725]
[1752051296143,1.69107276,661.48,660.93,1.698]
[1752051296939,1.69107276,661.47,660.93,3.39762725]
[1752051298544,1.69107276,661.46,660.93,1.698]
[1752051299349,1.69107276,661.47,660.93,1.698]
[1752051300048,1.69107276,661.44,660.93,1.698]
[1752051301649,1.69107276,661.45,660.93,1.698]
[1752051304551,1.69107276,661.43,660.93,1.698]
[1752051305460,1.69107276,661.37,660.93,1.698]
[1752051306156,0.98151886,661.51,660.93,1.698]
[1752051306157,1.69107276,661.38,660.93,1.698]
[1752051306955,1.69107276,661.36,660.93,1.698]
[1752051307159,1.69107276,661.37,660.93,1.698]
[1752051309157,1.69107276,661.36,660.93,1.698]
[1752051310361,1.69107276,661.35,660.93,1.698]
[1752051311160,1.69107276,661.36,660.93,1.698]
[1752051313165,1.69107276,661.37,660.93,1.698]
[1752051313660,1.69107276,661.36,660.93,1.698]
[1752051314161,1.69107276,661.37,660.93,1.698]
[1752051314360,1.69107276,661.35,660.93,1.698]
[1752051314766,1.69107276,661.37,660.93,1.698]
[1752051317767,1.69107276,661.38,660.93,1.698]
[1752051323475,1.69107276,661.39,660.93,1.698]
[1752051324072,1.69107276,661.4,660.93,1.698]
[1752051324673,1.69107276,661.39,660.93,1.698]
[1752051326177,1.69107276,661.38,660.93,1.698]
[1752051328483,1.69107276,661.4,660.93,1.698]
[1752051332882,1.69107276,661.39,660.93,1.698]
[1752051338392,1.40928474,661.52,660.93,1.698]
[1752051338695,1.68932875,661.37,660.93,1.698]
[1752051339694,1.68932875,661.39,660.93,1.698]
[1752051341098,1.68932875,661.43,660.93,1.698]
[1752051341394,1.68932875,661.56,660.93,1.698]
[1752051341794,1.68932875,661.57,660.93,1.698]
[1752051341993,1.68932875,661.56,660.93,1.698]
[1752051342901,1.68932875,661.55,660.93,1.698]
[1752051343100,1.68932875,661.51,660.93,1.698]
[1752051343294,1.68932875,661.5,660.93,1.698]
[1752051345498,1.41018169,661.66,660.93,1.698]
[1752051345700,1.68981658,661.5,660.93,1.698]
[1752051347004,1.68981658,661.49,660.93,1.698]
[1752051349900,1.68981658,661.48,660.93,1.698]
[1752051351106,1.68981658,661.44,660.96,1.69784701]
[1752051351906,1.68981658,661.44,660.97,1.69784701]
[1752051352206,1.68981658,661.43,660.97,1.69784701]
[1752051352707,0.98118394,661.53,660.93,1.698]
[1752051352902,1.69004119,661.59,660.93,1.698]
[1752051353407,1.69004119,661.59,660.73,1.96123638]
[1752051354206,1.69004119,661.58,660.73,0.26316884]
[1752051357311,1.69004119,661.58,660.74,1.412]
[1752051360513,1.69004119,661.61,660.74,1.412]
[1752051362109,1.69004119,661.6,660.74,1.412]
[1752051362414,0.98118394,661.82,660.74,1.412]
[1752051362415,1.69004119,661.57,660.74,1.412]
[1752051365917,1.69004119,661.59,660.74,1.412]
[1752051367321,1.69004119,661.56,660.74,1.412]
[1752051367520,1.69004119,661.55,660.74,1.412]
[1752051367817,1.69004119,661.54,660.74,1.412]
[1752051368416,1.69004119,661.51,660.74,1.412]
[1752051370320,3.3740865,662.0,660.74,1.412]
[1752051370321,1.69004119,661.48,660.74,1.412]
[1752051371616,1.69004119,661.48,660.74,3.11006754]
[1752051372116,1.69004119,661.48,660.74,1.412]
[1752051373520,1.69004119,661.47,660.74,1.412]
[1752051374121,0.98120627,661.67,660.74,1.412]
[1752051374324,1.69019013,661.47,660.74,1.412]
[1752051374525,1.69019013,661.44,660.75,1.69862131]
[1752051375219,1.69019013,661.44,660.76,1.69862131]
[1752051375823,1.69019013,661.39,660.83,1.69862131]
[1752051377225,1.69019013,661.36,660.88,1.69862131]
[1752051379931,1.69019013,661.35,660.89,1.69862131]
[1752051380435,1.69019013,661.36,660.88,1.69862131]
[1752051381131,1.69019013,661.36,660.87,1.69862131]
[1752051381936,1.69019013,661.36,660.88,3.70662131]
[1752051384534,1.69019013,661.35,660.89,1.69862131]
[1752051384736,1.69019013,661.36,660.88,3.70662131]
[1752051386942,1.69019013,661.35,660.89,1.69862131]
[1752051390242,1.69019013,661.34,660.91,1.69862131]
[1752051397140,1.69019013,661.34,660.9,1.69862131]
[1752051398944,1.69019013,661.35,660.89,1.69862131]
[1752051406046,1.69019013,661.35,660.88,3.70662131]
[1752051406946,1.69019013,661.35,660.89,1.69862131]
[1752051407748,1.69019013,661.35,660.88,3.70662131]
[1752051408850,1.69019013,661.35,660.89,1.69862131]
[1752051409254,1.69019013,661.34,660.9,1.69862131]
[1752051414957,1.69019013,661.33,660.91,1.69862131]
[1752051415853,1.69019013,661.33,660.92,1.69862131]
[1752051416359,1.69019013,661.32,660.92,1.69862131]
[1752051417453,1.69019013,661.32,660.93,1.69862131]
[1752051419257,1.69019013,661.33,660.91,1.69862131]
[1752051421061,1.6920844,661.33,660.91,1.70002579]
[1752051421257,1.6920844,661.32,660.9,1.70002579]
[1752051422362,1.6920844,661.32,660.91,1.70002579]
[1752051422758,1.6920844,661.31,660.91,1.70002579]
[1752051427465,1.6920844,661.3,660.92,1.70002579]
[1752051429072,1.6920844,661.29,660.94,1.70002579]
[1752051433976,1.6920844,661.28,660.94,1.70002579]
[1752051434679,1.6920844,661.28,660.95,1.70002579]
[1752051438280,1.6920844,661.3,660.92,1.70002579]
[1752051441678,1.6920844,661.32,660.88,1.70002579]
[1752051443083,1.6920844,661.33,660.89,2.119]
[1752051446084,0.98375309,661.46,660.89,2.119]
[1752051446281,1.69325286,661.33,660.89,2.119]
[1752051451089,1.69325286,661.32,660.89,2.119]
[1752051451390,1.69325286,661.3,660.91,1.70125092]
[1752051452988,1.69325286,661.28,660.94,1.70125092]
[1752051457192,1.69325286,661.29,660.94,1.70125092]
[1752051458391,1.69325286,661.29,660.93,1.70125092]
[1752051458991,1.69325286,661.31,660.9,1.70125092]
[1752051460798,1.69325286,661.32,660.9,1.70125092]
[1752051460998,1.69325286,661.31,660.9,1.70125092]
[1752051463195,1.69325286,661.31,660.91,1.70125092]
[1752051463400,1.69325286,661.31,660.9,1.70125092]
[1752051464802,1.69325286,661.31,660.91,1.70125092]
[1752051464999,1.69325286,661.3,660.91,1.70125092]
[1752051468801,1.69325286,661.29,660.93,1.70125092]
[1752051469302,1.69325286,661.28,660.95,1.70125092]
[1752051473704,1.69325286,661.27,660.94,1.70125092]
[1752051484115,0.98374398,661.37,660.89,2.119]
[1752051484316,1.6934421,661.27,660.94,1.701438]
[1752051487716,1.6934421,661.28,660.92,1.701438]
[1752051488116,1.6934421,661.29,660.92,1.701438]
[1752051489513,1.6934421,661.3,660.9,1.701438]
[1752051489718,1.6934421,661.3,660.89,2.119]
[1752051492414,1.6934421,661.28,660.89,2.119]
[1752051492715,1.6934421,661.23,660.89,2.119]
[1752051493520,1.6934421,661.24,660.89,2.119]
[1752051494620,1.6934421,661.25,660.89,2.119]
[1752051495317,1.6934421,661.26,660.89,2.119]
[1752051496022,1.6934421,661.25,660.89,2.119]
[1752051497118,1.6934421,661.27,660.89,2.119]
[1752051499023,1.6934421,661.29,660.89,2.119]
[1752051499223,1.6934421,661.34,660.89,2.119]
[1752051501423,1.6934421,661.35,660.89,2.119]
[1752051503125,1.6934421,661.35,660.61,1.701438]
[1752051503425,1.6934421,661.34,660.61,1.701438]
[1752051503820,1.6934421,661.29,660.57,0.26324748]
[1752051504421,1.6934421,661.3,660.57,0.26324748]
[1752051505121,1.6934421,661.29,660.57,1.96468548]
[1752051505623,1.6934421,661.29,660.57,0.26324748]
[1752051506422,1.6934421,661.29,660.58,2.161]
[1752051506624,1.6934421,661.28,660.58,3.862438]
[1752051507326,1.6934421,661.32,660.63,1.701438]
[1752051507520,1.6934421,661.33,660.63,1.701438]
[1752051508020,1.6934421,661.31,660.61,1.701438]
[1752051508921,1.6934421,661.31,660.58,2.161]
[1752051508922,1.6934421,661.27,660.66,1.701438]
[1752051509121,1.6934421,661.27,660.67,1.701438]
[1752051509622,1.6934421,661.26,660.68,1.701438]
[1752051511327,1.6934421,661.27,660.68,1.701438]
[1752051512125,1.6934421,661.26,660.68,1.701438]
[1752051513027,1.6934421,661.26,660.69,1.701438]
[1752051513226,1.6934421,661.25,660.71,1.701438]
[1752051514926,1.6934421,661.24,660.7,1.701438]
[1752051515527,1.41086603,661.35,660.58,4.42058444]
[1752051515528,1.6934421,661.23,660.71,1.701438]
[1752051517426,1.6934421,661.24,660.71,1.701438]
[1752051518536,1.6934421,661.23,660.72,1.701438]
[1752051523743,1.6934421,661.2,660.69,1.701438]
[1752051530148,1.6934421,661.21,660.7,1.701438]
[1752051533258,1.6934421,661.2,660.7,1.701438]